bitfinex/quotes_SOLUSD_20251207
["timestamp","ask_amount","ask_price","bid_price","bid_amount"]
[1765129165240,7.40631017,135.02,134.95,0.71]
[1765129165653,8.44,135.05,134.98,16.308864]
[1765129166072,26.95201408,135.05,134.99,0.71]
[1765129166473,7.40411668,135.06,134.99,0.71]
[1765129166652,25.9144084,135.06,134.99,0.71]
[1765129167039,25.9144084,135.06,134.99,8.11751556]
[1765129167743,25.9144084,135.06,135.0,0.71]
[1765129168050,25.9144084,135.06,134.97,0.71]
[1765129168370,25.9144084,135.06,134.98,8.1181409]
[1765129168868,25.9144084,135.06,134.99,0.71]
[1765129169556,62.93499184,135.06,134.96,0.71]
[1765129170166,62.93499184,135.06,134.93,0.71]
[1765129170167,8.80994492,135.05,134.93,0.71]
[1765129170369,26.11880891,135.05,134.93,0.71]
[1765129171371,8.80994492,135.03,134.91,0.71]
[1765129171663,62.96296294,135.0,134.92,0.71]
[1765129172772,25.92592591,135.0,134.92,0.71]
[1765129172949,34.36592591,135.0,134.92,17.018864]
[1765129173462,34.36592591,135.0,134.9,18.53132634]
[1765129173463,34.36592591,135.0,134.9,17.018864]
[1765129173643,34.36592591,135.0,134.9,16.308864]
[1765129173845,34.36592591,135.0,134.9,17.018864]
[1765129174156,8.44,134.99,134.91,0.71]
[1765129175651,62.97229217,134.98,134.88,0.71]
[1765129176081,8.80994492,134.97,134.84,8.44]
[1765129176268,8.80994492,134.95,134.86,0.71]
[1765129176464,62.97229217,134.98,134.86,0.71]
[1765129176656,8.44,134.97,134.86,0.71]
[1765129177262,8.44,134.97,134.87,7.41403894]
[1765129177465,8.44,134.97,134.88,7.41362864]
[1765129177649,8.44,134.97,134.86,19.24694558]
[1765129177965,25.93360995,134.96,134.87,0.71]
[1765129178360,25.93360995,134.96,134.88,16.308864]
[1765129178789,25.93360995,134.96,134.89,0.71]
[1765129179456,37.04252481,134.98,134.9,7.41289844]
[1765129179661,8.44,134.96,134.9,7.41289844]
[1765129179853,8.44,134.96,134.91,0.71]
[1765129180804,8.44,134.97,134.91,0.71]
[1765129182063,7.40960284,134.96,134.91,0.71]
[1765129182476,25.93360995,134.96,134.91,0.71]
[1765129182660,25.93360995,134.96,134.89,0.71]
[1765129184692,25.93360995,134.96,134.9,16.308864]
[1765129184894,34.37360995,134.96,134.9,16.308864]
[1765129185670,34.37360995,134.96,134.9,17.018864]
[1765129186595,34.37360995,134.96,134.89,16.308864]
[1765129186899,34.37360995,134.96,134.87,0.71]
[1765129187564,8.44,134.95,134.87,8.12414923]
[1765129187954,8.44,134.95,134.88,0.71]
[1765129188952,8.44,134.95,134.78,9.00994492]
[1765129188953,8.80994492,134.93,134.78,9.00994492]
[1765129189288,8.80994492,134.91,134.83,0.71]
[1765129189590,8.80994492,134.91,134.79,0.71]
[1765129189778,8.80994492,134.91,134.78,0.2]
[1765129189976,8.80994492,134.87,134.78,0.2]
[1765129190171,8.44,134.86,134.78,0.2]
[1765129190560,8.80994492,134.85,134.78,0.2]
[1765129190968,63.03767427,134.84,134.78,0.2]
[1765129191187,8.80994492,134.82,134.78,0.2]
[1765129191677,8.80994492,134.82,134.75,0.2]
[1765129192157,8.80994492,134.78,134.75,0.2]
[1765129192357,8.44,134.77,134.75,0.2]
[1765129193370,7.42059958,134.76,134.75,0.2]
[1765129193667,15.86059958,134.76,134.75,0.2]
[1765129194582,24.6705445,134.76,134.75,0.2]
[1765129195076,25.11880892,134.75,134.73,1e-08]
[1765129195471,7.42170105,134.74,134.73,1e-08]
[1765129196464,15.86170105,134.74,134.73,1e-08]
[1765129196893,9.68219452,134.74,134.73,1e-08]
[1765129197080,9.68219452,134.74,134.73,0.66000001]
[1765129197282,9.68219452,134.74,134.73,1e-08]
[1765129197584,17.10389557,134.74,134.73,1e-08]
[1765129197957,9.68219452,134.74,134.73,0.66000001]
[1765129198157,17.10389557,134.74,134.73,0.66000001]
[1765129199186,18.547539,134.79,134.73,0.66000001]
[1765129199490,9.68219452,134.75,134.73,0.66000001]
[1765129199668,7.42054378,134.77,134.73,0.66000001]
[1765129199876,9.68219452,134.74,134.73,0.66000001]
[1765129200475,9.68219452,134.74,134.73,1e-08]
[1765129200678,9.68219452,134.74,134.73,0.66000001]
[1765129200969,17.85761573,134.77,134.73,0.66000001]
[1765129200970,26.29761573,134.77,134.73,0.66000001]
[1765129201170,9.68219452,134.74,134.73,0.66000001]
[1765129201578,9.68219452,134.74,134.73,1e-08]
[1765129201896,9.68219452,134.76,134.73,0.66000001]
[1765129202085,9.68219452,134.75,134.73,0.66000001]
[1765129202286,9.68219452,134.74,134.73,0.66000001]
[1765129203062,9.68219452,134.74,134.73,1e-08]
[1765129203594,9.68219452,134.74,134.73,0.66000001]
[1765129203796,9.68219452,134.76,134.73,0.66000001]
[1765129203997,9.68219452,134.76,134.73,8.08212332]
[1765129204499,7.41894799,134.79,134.74,0.66]
[1765129204706,9.68219452,134.78,134.74,0.66]
[1765129205068,9.68219452,134.77,134.74,0.66]
[1765129205263,9.68219452,134.78,134.74,0.66]
[1765129205866,9.68219452,134.81,134.75,17.10334479]
[1765129206073,9.68219452,134.82,134.76,25.99105852]
[1765129206283,9.68219452,134.82,134.76,26.65105852]
[1765129206476,9.68219452,134.82,134.77,0.66]
[1765129206677,9.68219452,134.81,134.77,0.66]
[1765129206878,9.68219452,134.79,134.77,0.66]
[1765129207294,18.53954956,134.85,134.77,0.66]
[1765129207492,9.68219452,134.8,134.78,16.308864]
[1765129207686,9.68219452,134.81,134.78,16.308864]
[1765129207882,9.68219452,134.8,134.79,0.66]
[1765129208981,9.68219452,134.8,134.75,0.66]
[1765129209202,9.68219452,134.8,134.73,8.44000001]
[1765129209203,9.68219452,134.76,134.73,8.44000001]
[1765129209402,9.68219452,134.74,134.73,1e-08]
[1765129209811,17.10389557,134.74,134.73,1e-08]
[1765129210418,9.68219452,134.74,134.73,0.66000001]
[1765129210896,17.10389557,134.74,134.73,0.66000001]
[1765129211310,7.42170105,134.74,134.73,0.66000001]
[1765129211492,17.10389557,134.74,134.73,0.66000001]
[1765129212812,17.10389557,134.74,134.73,1e-08]
[1765129213697,17.10389557,134.74,134.73,0.66000001]
[1765129213897,17.10389557,134.74,134.73,1e-08]
[1765129215196,25.54389557,134.74,134.73,1e-08]
[1765129216005,17.10389557,134.74,134.73,1e-08]
[1765129216211,25.54389557,134.74,134.73,1e-08]
[1765129216519,15.86170105,134.74,134.73,1e-08]
[1765129216707,25.54389557,134.74,134.73,1e-08]
[1765129217789,15.86170105,134.74,134.73,1e-08]
[1765129217994,9.68219452,134.74,134.73,1e-08]
[1765129220024,17.10389557,134.74,134.73,1e-08]
[1765129220230,8.80994492,134.73,134.72,1e-08]
[1765129220399,28.17433396,134.73,134.68,0.2]
[1765129220594,9.68219452,134.69,134.68,0.2]
[1765129220832,18.12219452,134.69,134.68,0.2]
[1765129221194,9.68219452,134.69,134.68,0.2]
[1765129221908,9.68219452,134.69,134.68,0.86]
[1765129222105,17.10665067,134.69,134.68,0.2]
[1765129224033,17.10665067,134.69,134.68,0.86]
[1765129224418,17.10665067,134.69,134.68,0.2]
[1765129225129,17.10665067,134.69,134.66,0.2]
[1765129225130,35.66779106,134.69,134.66,0.2]
[1765129225309,9.68219452,134.67,134.66,0.2]
[1765129226140,17.10775329,134.67,134.66,0.2]
[1765129227213,25.54775329,134.67,134.66,0.2]
[1765129227741,34.35769821,134.67,134.66,1e-08]
[1765129227911,8.80994492,134.66,134.63,0.2]
[1765129228106,9.68219452,134.64,134.63,0.2]
[1765129228304,17.10940782,134.64,134.63,0.2]
[1765129230332,25.54940782,134.64,134.63,0.2]
[1765129231032,25.54940782,134.64,134.63,1e-08]
[1765129231332,34.35935274,134.64,134.63,1e-08]
[1765129232253,17.10940782,134.64,134.63,1e-08]
[1765129232450,15.8672133,134.64,134.63,1e-08]
[1765129232609,25.54940782,134.64,134.63,1e-08]
[1765129233524,17.10940782,134.64,134.63,1e-08]
[1765129233733,17.10940782,134.64,134.63,0.66000001]
[1765129234132,7.4272133,134.64,134.63,0.66000001]
[1765129234439,17.10940782,134.64,134.63,0.66000001]
[1765129235712,17.10940782,134.64,134.63,1e-08]
[1765129236143,17.10940782,134.64,134.63,0.66000001]
[1765129236350,7.42666258,134.65,134.63,0.66000001]
[1765129236642,9.68219452,134.64,134.63,0.66000001]
[1765129236863,7.42627662,134.66,134.63,0.66000001]
[1765129237011,9.68219452,134.64,134.63,0.66000001]
[1765129237651,17.10940782,134.64,134.63,0.66000001]
[1765129237956,17.10940782,134.64,134.63,0.31710001]
[1765129238249,17.10940782,134.64,134.61,0.2]
[1765129238423,9.68219452,134.62,134.61,0.2]
[1765129239139,18.12219452,134.62,134.61,0.2]
[1765129239659,25.55051126,134.62,134.61,0.2]
[1765129240476,9.68219452,134.64,134.61,0.86]
[1765129240758,6.2604899,134.65,134.61,26.86091203]
[1765129240926,6.2604899,134.64,134.62,0.66]
[1765129241127,6.2604899,134.63,134.62,0.66]
[1765129242366,13.68825488,134.63,134.62,0.66]
[1765129244440,13.68825488,134.63,134.61,0.2]
[1765129244653,6.2604899,134.62,134.61,0.2]
[1765129246264,6.2604899,134.62,134.61,17.168864]
[1765129246649,6.2604899,134.62,134.61,0.86]
[1765129247563,6.2604899,134.63,134.61,0.86]
[1765129247735,6.2604899,134.63,134.62,0.66]
[1765129248385,13.68840773,134.63,134.62,0.66]
[1765129248556,13.68840773,134.63,134.61,0.2]
[1765129248749,6.2604899,134.62,134.61,0.2]
[1765129248957,6.2604899,134.62,134.61,0.86]
[1765129249167,6.2604899,134.62,134.61,0.2]
[1765129249555,6.2604899,134.62,134.61,0.86]
[1765129251553,6.2604899,134.62,134.61,0.2]
[1765129252249,14.7004899,134.62,134.61,0.2]
[1765129252449,23.85043482,134.62,134.61,0.2]
[1765129252645,26.00297176,134.6,134.55,0.69]
[1765129252968,6.2604899,134.56,134.53,0.89]
[1765129253144,6.2604899,134.54,134.53,0.89]
[1765129253958,6.2604899,134.54,134.53,0.2]
[1765129254476,71.9600192,134.6,134.53,0.89]
[1765129254773,6.2604899,134.54,134.53,0.89]
[1765129255572,7.43225676,134.55,134.53,0.89]
[1765129255762,6.2604899,134.54,134.53,0.2]
[1765129255936,6.2604899,134.56,134.53,7.63324428]
[1765129256141,6.2604899,134.57,134.54,16.308864]
[1765129256363,7.42984462,134.6,134.55,0.69]
[1765129256567,6.2604899,134.58,134.55,0.69]
[1765129256767,6.2604899,134.57,134.55,24.43095474]
[1765129256944,6.2604899,134.57,134.55,8.12209074]
[1765129257150,6.2604899,134.57,134.56,0.69]
[1765129258550,13.69156666,134.57,134.56,0.69]
[1765129258744,13.69156666,134.57,134.54,16.998864]
[1765129258944,7.43095114,134.58,134.54,16.308864]
[1765129259241,6.2604899,134.56,134.54,16.308864]
[1765129259567,6.2604899,134.56,134.55,0.69]
[1765129260344,6.2604899,134.56,134.55,16.998864]
[1765129260751,6.2604899,134.56,134.55,16.308864]
[1765129261072,6.2604899,134.56,134.54,0.69]
[1765129261270,6.2604899,134.55,134.53,0.2]
[1765129261478,6.2604899,134.54,134.53,0.2]
[1765129261655,6.2604899,134.54,134.53,0.89]
[1765129262072,6.2604899,134.54,134.53,17.198864]
[1765129263167,6.2604899,134.54,134.53,0.89]
[1765129263760,7.43254215,134.55,134.53,0.89]
[1765129263968,7.43254215,134.55,134.53,0.2]
[1765129264265,6.2604899,134.54,134.53,0.2]
[1765129264460,13.69322365,134.54,134.53,0.2]
[1765129266687,6.2604899,134.55,134.53,8.32309207]
[1765129266897,6.2604899,134.55,134.53,8.32315145]
[1765129267081,6.2604899,134.55,134.54,0.69]
[1765129267474,7.43055768,134.58,134.54,0.69]
[1765129267682,6.2604899,134.55,134.54,0.69]
[1765129268316,12.5209798,134.55,134.53,0.2]
[1765129268601,13.69322365,134.54,134.53,0.2]
[1765129268813,6.2604899,134.54,134.53,0.89]
[1765129269389,8.80994492,134.57,134.53,0.89]
[1765129269585,8.80994492,134.57,134.54,0.69]
[1765129269762,7.43173873,134.56,134.54,0.69]
[1765129270767,6.2604899,134.55,134.53,0.2]
[1765129270965,7.43173873,134.56,134.54,0.69]
[1765129271765,7.43173873,134.56,134.53,0.2]
[1765129271966,7.43173873,134.56,134.53,0.89]
[1765129272162,6.2604899,134.54,134.53,0.89]
[1765129272776,13.69322365,134.54,134.53,0.89]
[1765129272991,7.43273375,134.54,134.53,0.89]
[1765129273295,13.69322365,134.54,134.53,0.89]
[1765129273872,6.2604899,134.54,134.53,0.89]
[1765129274276,13.69322365,134.54,134.53,0.89]
[1765129274599,7.43273375,134.54,134.53,0.89]
[1765129274800,18.5784384,134.57,134.53,0.89]
[1765129274971,6.2604899,134.54,134.53,0.2]
[1765129275696,6.2604899,134.54,134.53,0.89]
[1765129276393,6.2604899,134.54,134.53,0.2]
[1765129276595,13.69322365,134.54,134.53,0.2]
[1765129276893,13.69322365,134.54,134.53,0.89]
[1765129277091,7.43235316,134.55,134.53,0.89]
[1765129277298,6.2604899,134.54,134.53,0.89]
[1765129277498,6.2604899,134.54,134.53,0.2]
[1765129277704,6.2604899,134.54,134.53,0.89]
[1765129279609,13.69322365,134.54,134.53,0.89]
[1765129281400,22.50316857,134.54,134.53,0.2]
[1765129281804,8.80994492,134.53,134.51,0.2]
[1765129282008,6.6004899,134.52,134.51,0.2]
[1765129282593,8.80994492,134.5,134.49,0.2]
[1765129282792,6.2604899,134.5,134.49,0.2]
[1765129283095,8.80994492,134.5,134.49,0.2]
[1765129283313,15.07043482,134.5,134.49,0.2]
[1765129283496,22.50537905,134.5,134.49,0.2]
[1765129283903,22.84537905,134.5,134.47,0.2]
[1765129284214,8.80994492,134.47,134.42,8.62]
[1765129284412,6.2604899,134.43,134.42,0.2]
[1765129284620,8.42,134.46,134.42,0.2]
[1765129284799,8.42,134.46,134.44,16.308864]
[1765129284800,6.2604899,134.46,134.44,16.308864]
[1765129284999,7.43494423,134.5,134.43,16.308864]
[1765129285324,6.2604899,134.45,134.44,16.978864]
[1765129285521,6.2604899,134.45,134.42,0.2]
[1765129285703,6.2604899,134.43,134.42,0.2]
[1765129285899,15.07043482,134.43,134.42,0.2]
[1765129287392,22.50925056,134.43,134.42,0.2]
[1765129288820,6.2604899,134.43,134.42,0.2]
[1765129289021,22.74925056,134.43,134.42,0.2]
[1765129289201,22.50925056,134.43,134.42,0.2]
[1765129289407,30.92925056,134.43,134.42,0.2]
[1765129289821,16.24831104,134.44,134.42,0.87]
[1765129290022,6.2604899,134.43,134.42,0.87]
[1765129290200,6.2604899,134.43,134.42,0.2]
[1765129291502,22.50925056,134.43,134.42,0.2]
[1765129291827,22.50925056,134.43,134.42,0.87]
[1765129291828,6.2604899,134.43,134.42,0.87]
[1765129295226,13.69930564,134.43,134.42,0.2]
[1765129295399,22.50925056,134.43,134.42,0.2]
[1765129295803,22.74925056,134.43,134.42,0.2]
[1765129296001,41.34628991,134.43,134.4,0.2]
[1765129296225,15.07043482,134.41,134.34,0.67]
[1765129296401,6.2604899,134.35,134.34,0.67]
[1765129296808,6.2604899,134.36,134.34,0.67]
[1765129297332,6.2604899,134.37,134.34,0.67]
[1765129297520,6.2604899,134.38,134.34,8.11369192]
[1765129297719,6.2604899,134.39,134.34,24.42255592]
[1765129298030,8.42,134.42,134.35,0.67]
[1765129298031,6.2604899,134.4,134.35,0.67]
[1765129298524,6.2604899,134.4,134.37,16.308864]
[1765129298929,6.2604899,134.4,134.38,0.67]
[1765129301199,6.2604899,134.39,134.38,16.978864]
[1765129301706,7.43997647,134.41,134.38,16.978864]
[1765129302016,6.2604899,134.41,134.39,0.67]
[1765129302207,6.2604899,134.4,134.39,0.67]
[1765129302409,7.4395355,134.42,134.39,0.67]
[1765129302612,6.2604899,134.4,134.39,0.67]
[1765129302824,9.72510814,134.42,134.39,0.67]
[1765129303034,17.1645184,134.42,134.39,16.978864]
[1765129303409,9.72510814,134.42,134.4,0.67]
[1765129303736,17.16465705,134.42,134.4,0.67]
[1765129303923,7.43954891,134.42,134.4,0.67]
[1765129304120,9.72510814,134.41,134.4,0.67]
[1765129304309,17.16465705,134.42,134.4,0.67]
[1765129304703,7.43954891,134.42,134.4,0.67]
[1765129304902,7.43898457,134.43,134.4,0.67]
[1765129305111,9.72510814,134.42,134.4,0.67]
[1765129305306,7.43898457,134.43,134.39,16.308864]
[1765129305307,9.72510814,134.41,134.39,16.308864]
[1765129305527,9.72510814,134.4,134.39,16.308864]
[1765129305830,26.03602392,134.43,134.39,16.978864]
[1765129306128,9.72510814,134.41,134.39,16.978864]
[1765129306514,9.72510814,134.4,134.39,16.978864]
[1765129306715,9.72510814,134.41,134.39,16.978864]
[1765129306912,17.16538216,134.41,134.37,16.308864]
[1765129307133,9.72510814,134.41,134.38,24.42024011]
[1765129307304,9.72510814,134.41,134.39,0.67]
[1765129307941,7.43972578,134.42,134.39,0.67]
[1765129308123,9.72510814,134.43,134.39,16.53090609]
[1765129308468,9.72510814,134.49,134.42,26.03397214]
[1765129308638,9.72510814,134.49,134.43,8.42]
[1765129308823,26.02230482,134.5,134.44,8.42]
[1765129309016,26.02230482,134.5,134.44,9.09]
[1765129309017,9.72510814,134.49,134.44,9.09]
[1765129309338,9.72510814,134.49,134.45,0.67]
[1765129309711,7.43494423,134.5,134.45,0.67]
[1765129309919,9.72510814,134.49,134.45,0.67]
[1765129310436,900.0,134.51,134.45,0.67]
[1765129310437,917.15963935,134.51,134.45,0.67]
[1765129310940,917.15963935,134.51,134.46,7.43715603]
[1765129311233,917.15963935,134.51,134.47,8.42]
[1765129311434,917.15963935,134.51,134.47,9.11]
[1765129311742,9.72510814,134.5,134.48,0.69]
[1765129312122,9.72510814,134.5,134.46,16.998864]
[1765129312324,907.43453121,134.51,134.46,25.418864]
[1765129312534,907.43453121,134.51,134.47,0.69]
[1765129312535,9.72510814,134.5,134.47,0.69]
[1765129312922,926.02050994,134.51,134.46,24.728864]
[1765129312923,9.72510814,134.49,134.46,24.728864]
[1765129313128,17.16065074,134.49,134.46,25.418864]
[1765129313459,9.72510814,134.48,134.46,8.42]
[1765129313618,9.72510814,134.47,134.44,9.11]
[1765129313817,9.72510814,134.47,134.44,25.418864]
[1765129314129,9.72510814,134.47,134.44,9.11]
[1765129315111,9.72510814,134.49,134.45,0.69]
[1765129315312,900.0,134.51,134.49,16.308864]
[1765129315536,900.0,134.51,134.5,0.69]
[1765129316213,900.0,134.51,134.49,24.728864]
[1765129316444,900.0,134.51,134.5,0.7]
[1765129318740,900.0,134.51,134.5,8.13494423]
[1765129319522,900.0,134.51,134.5,0.7]
[1765129319727,900.0,134.51,134.5,8.13494423]
[1765129320150,900.0,134.51,134.5,0.7]
[1765129320836,900.0,134.51,134.5,16.55494423]
[1765129321034,899.28,134.51,134.5,26.28005237]
[1765129321231,843.01161694,134.51,134.5,25.36488915]
[1765129321429,843.01161694,134.51,134.5,26.28005237]
[1765129321630,843.01161694,134.51,134.5,16.55494423]
[1765129321852,798.42086853,134.51,134.5,35.08999729]
[1765129322031,750.04524197,134.51,134.5,35.08999729]
[1765129322533,647.26695382,134.51,134.5,35.08999729]
[1765129323752,477.23505742,134.51,134.5,44.81510543]
[1765129323952,7.42787373,134.63,134.54,25.11880892]
[1765129323953,7.42776982,134.63,134.54,25.11880892]
[1765129324151,17.15287796,134.63,134.6,16.308864]
[1765129324357,17.82287796,134.63,134.6,24.728864]
[1765129324654,8.09776982,134.63,134.6,24.728864]
[1765129324851,7.42776982,134.63,134.6,24.728864]
[1765129325047,17.15232144,134.64,134.6,24.728864]
[1765129325360,0.67,134.63,134.6,24.728864]
[1765129326257,10.39510814,134.63,134.6,24.728864]
[1765129326447,9.72510814,134.61,134.53,18.76798269]
[1765129326645,9.72510814,134.59,134.54,8.42]
[1765129326849,9.47994492,134.63,134.55,8.42]
[1765129327048,17.15602798,134.58,134.55,8.42]
[1765129327357,17.15602798,134.58,134.55,16.308864]
[1765129327555,17.15602798,134.58,134.5,7.43488304]
[1765129327556,9.72510814,134.56,134.5,7.43488304]
[1765129327866,17.15602798,134.58,134.54,16.308864]
[1765129328033,17.15602798,134.58,134.55,24.728864]
[1765129328358,9.72510814,134.59,134.55,24.728864]
[1765129328557,8.09903902,134.61,134.58,16.308864]
[1765129328857,17.82319375,134.63,134.58,24.728864]
[1765129329027,8.09808561,134.63,134.58,32.1589829]
[1765129329230,0.67,134.62,134.58,32.1589829]
[1765129329932,18.56852143,134.64,134.58,32.1589829]
[1765129329933,0.2,134.65,134.61,26.03397214]
[1765129330138,0.2,134.65,134.64,9.72510814]
[1765129330563,0.2,134.65,134.64,26.03397214]
[1765129330730,0.2,134.65,134.64,16.308864]
[1765129330931,0.2,134.65,134.64,24.708864]
[1765129331150,0.2,134.65,134.64,16.308864]
[1765129331345,0.2,134.65,134.64,24.708864]
[1765129332133,0.2,134.65,134.59,39.88419754]
[1765129332134,18.02176985,134.65,134.59,22.23083933]
[1765129332334,8.29666171,134.65,134.6,15.82900738]
[1765129332545,18.02181696,134.65,134.6,25.55448338]
[1765129332753,10.39510814,134.64,134.6,8.4]
[1765129332957,0.67,134.64,134.6,8.4]
[1765129333264,17.15232144,134.64,134.63,16.308864]
[1765129333466,17.15232144,134.64,134.6,8.4]
[1765129333660,8.0972133,134.64,134.6,15.82940218]
[1765129333969,0.2,134.65,134.63,16.308864]
[1765129334162,0.2,134.65,134.63,24.708864]
[1765129334540,0.2,134.65,134.63,32.13659569]
[1765129335142,0.2,134.65,134.63,24.708864]
[1765129335564,0.2,134.65,134.63,32.13652509]
[1765129336067,0.2,134.65,134.63,41.86163323]
[1765129336248,0.2,134.65,134.63,32.13652509]
[1765129337442,0.2,134.65,134.63,41.86163323]
[1765129337642,0.2,134.65,134.64,9.72510814]
[1765129338043,0.2,134.65,134.64,22.38972822]
[1765129338345,0.2,134.65,134.64,41.59478128]
[1765129339365,0.2,134.65,134.64,49.02199458]
[1765129339848,0.2,134.65,134.64,28.49183338]
[1765129340053,0.2,134.65,134.64,38.21694152]
[1765129341365,0.2,134.65,134.64,29.81694152]
[1765129341564,0.2,134.65,134.64,38.21694152]
[1765129342078,0.2,134.65,134.64,28.49183338]
[1765129342251,0.2,134.65,134.64,38.21694152]
[1765129342453,0.2,134.65,134.64,12.66462008]
[1765129342658,0.2,134.65,134.64,15.8272133]
[1765129342969,0.2,134.65,134.64,32.1360773]
[1765129343144,0.2,134.65,134.64,15.8272133]
[1765129344546,0.2,134.65,134.64,25.55232144]
[1765129344754,1e-08,134.65,134.64,34.36226636]
[1765129345275,1e-08,134.65,134.64,49.47681559]
[1765129345441,0.67,134.72,134.64,106.18091539]
[1765129345643,0.67,134.72,134.71,16.308864]
[1765129345953,17.24632237,134.75,134.71,24.708864]
[1765129346154,0.67,134.74,134.71,24.708864]
[1765129346556,0.67,134.74,134.71,32.13214077]
[1765129349786,0.67,134.74,134.72,8.4]
[1765129350570,17.81691867,134.74,134.72,8.4]
[1765129350879,9.72510814,134.73,134.71,24.708864]
[1765129351061,9.72510814,134.72,134.66,9.72510814]
[1765129351267,0.67,134.71,134.67,8.4]
[1765129351457,0.67,134.71,134.7,16.308864]
[1765129351781,0.67,134.71,134.67,8.4]
[1765129352079,0.67,134.71,134.7,16.308864]
[1765129352279,0.67,134.72,134.7,24.708864]
[1765129352454,0.67,134.72,134.71,16.308864]
[1765129354270,10.39510814,134.72,134.7,8.4]
[1765129354474,17.81791099,134.72,134.71,16.308864]
[1765129354676,17.14791099,134.72,134.71,16.308864]
[1765129355175,0.67,134.72,134.71,16.308864]
[1765129358489,17.81791099,134.72,134.7,8.4]
[1765129358680,17.81791099,134.72,134.69,16.308864]
[1765129358681,9.72510814,134.71,134.69,16.308864]
[1765129358981,9.72510814,134.71,134.68,8.4]
[1765129358982,10.39510814,134.71,134.68,8.4]
[1765129359171,0.67,134.7,134.68,8.4]
[1765129359364,0.67,134.7,134.69,16.308864]
[1765129360980,0.67,134.72,134.71,16.308864]
[1765129361181,10.39510814,134.74,134.71,16.308864]
[1765129361394,0.67,134.74,134.71,16.308864]
[1765129361601,0.67,134.73,134.72,24.688864]
[1765129361760,0.77,134.75,134.74,16.308864]
[1765129362267,0.1,134.75,134.74,34.41397214]
[1765129362590,0.77,134.75,134.74,24.688864]
[1765129363163,0.77,134.75,134.74,16.308864]
[1765129363379,0.1,134.75,134.74,16.308864]
[1765129363580,0.1,134.75,134.74,17.64938723]
[1765129363880,0.1,134.75,134.74,25.07108828]
[1765129364261,0.77,134.75,134.74,16.308864]
[1765129364476,7.02010048,134.75,134.74,16.308864]
[1765129364974,0.77,134.75,134.74,16.308864]
[1765129365579,0.77,134.75,134.73,16.308864]
[1765129365783,0.77,134.75,134.73,7.42225191]
[1765129366285,0.77,134.75,134.74,16.308864]
[1765129366487,0.1,134.75,134.74,24.688864]
[1765129367062,0.1,134.75,134.74,30.93896448]
[1765129367572,0.1,134.75,134.74,24.688864]
[1765129367773,0.1,134.75,134.74,32.11056505]
[1765129367968,0.1,134.75,134.74,8.38]
[1765129368174,0.77,134.75,134.74,8.38]
[1765129369666,14.44125075,134.75,134.74,8.38]
[1765129369979,0.1,134.75,134.74,24.688864]
[1765129370376,0.1,134.75,134.74,32.11056505]
[1765129370688,0.1,134.75,134.74,15.80170105]
[1765129370892,0.1,134.75,134.74,8.38]
[1765129372078,0.1,134.75,134.74,15.80170105]
[1765129372274,0.1,134.75,134.74,32.11056505]
[1765129372781,7.05010048,134.75,134.74,16.308864]
[1765129373678,0.8,134.75,134.74,16.308864]
[1765129376111,7.05010048,134.75,134.74,16.308864]
[1765129376269,14.47125075,134.75,134.74,16.308864]
[1765129376999,14.47125075,134.75,134.72,8.38]
[1765129377212,6.94010048,134.74,134.72,8.38]
[1765129377419,6.94010048,134.74,134.72,24.688864]
[1765129377690,6.94010048,134.73,134.7,8.38]
[1765129378185,0.69,134.72,134.7,8.38]
[1765129378694,6.94010048,134.72,134.7,8.38]
[1765129379001,27.46282061,134.75,134.7,32.11268204]
[1765129379002,0.69,134.74,134.7,32.11268204]
[1765129379179,0.1,134.75,134.73,16.308864]
[1765129379386,0.69,134.74,134.73,16.308864]
[1765129380283,0.1,134.75,134.74,16.308864]